Cogmind - Beta 14 @@@ ROGUE MODE // 2024.11.14 @ 19:28:52 Player: star Result: Destroyed by H-66 Slayer with Heavy Assault Rifle Performance ------------- Evolutions (4) 2000 Regions Visited (6) 1200 Robots Destroyed (86) 430 Value Destroyed (2732) 2732 Prototype IDs (10) 200 Alien Tech Used (0) 0 Bonus (564) 564 TOTAL SCORE: 7126 Bonus ------- High Alert Combat Kills 63 Follower Combat Kills 501 Cogmind --------- Core Integrity 0/850 Matter 300/300 Energy 160/160 System Corruption 10% Temperature Cool (4) Movement Walking (120) Location -6/Extension Parts ------- > --- POWER (1) -------- Light Fission Core > --- PROPULSION (8) --- Flexi-carbon Leg > --- UTILITY (4) ------ Visual Processing Unit Targeting Computer Targeting Computer Melee Analysis Suite > --- WEAPON (2) ------- Ripper > --- INVENTORY (5) ---- Structural Scanner Improved Signal Interpreter Peak State ------------ > --- POWER ------------ Micro Nuclear Core > --- PROPULSION ------- Xenon Bombardment Thruster Xenon Bombardment Thruster Xenon Bombardment Thruster Xenon Bombardment Thruster Xenon Bombardment Thruster Improved Cesium-ion Thruster Cooled VTOL Module Cooled VTOL Module > --- UTILITY ---------- Advanced Heat Sink Small Storage Unit Visual Processing Unit Hacking Suite > --- WEAPON ----------- Precision Assault Rifle Precision Assault Rifle > --- INVENTORY -------- Structural Scanner Improved Signal Interpreter Improved Recalibrator Improved Assault Rifle Missile Launcher Spear [Rating: 62] Favorites ----------- Power Heavy Ion Engine Engine Heavy Ion Engine Power Core Micro Nuclear Core Propulsion Xenon Bombardment Thruster Treads Light Treads Leg Improved Aluminum Leg Wheel Compact Wheel Hover Unit Improved Hover Unit Flight Unit Xenon Bombardment Thruster Utility Small Storage Unit Device Improved Heat Sink Storage Small Storage Unit Processor Visual Processing Unit Hackware Hacking Suite Protection Hardened Medium Armor Plating Weapon Precision Assault Rifle Energy Gun Spread Laser Ballistic Gun Precision Assault Rifle Launcher Improved Proton Missile Launcher Slashing Weapon Ripper Piercing Weapon Spear Special Melee Weapon Improved Datajack Build | -11 -10 -9 -8 -7 -6 -6 ------- Run | Yrd Mat Mat Mat Fac Fac Ext Slots Evolved 8 | . . 2 2 2 2 . Power . | . . . . . . . Propulsion 6 | . . 1 1 2 2 . Utility 2 | . . 1 1 . . . Weapon . | . . . . . . . Parts Attached 114 | 6 7 4 31 26 3 37 Power 11 | 1 1 1 2 3 . 3 Engine 9 | 1 1 1 2 2 . 2 Core 2 | . . . . 1 . 1 Reactor . | . . . . . . . Propulsion 42 | 2 2 2 12 9 2 13 Treads 5 | . . . . . . 5 Leg 11 | . 2 2 2 . . 5 Wheel 5 | 2 . . 3 . . . Hover 1 | . . . . . . 1 Flight 20 | . . . 7 9 2 2 Utility 22 | 1 1 1 6 5 . 8 Device 8 | . 1 1 3 1 . 2 Storage 1 | 1 . . . . . . Processor 8 | . . . . 2 . 6 Hackware 1 | . . . . 1 . . Protection 4 | . . . 3 1 . . Artifact . | . . . . . . . Weapon 39 | 2 3 . 11 9 1 13 Energy Gun 12 | . 3 . 9 . . . Energy Cannon . | . . . . . . . Ballistic Gun 15 | 2 . . 2 6 . 5 Ballistic Cannon . | . . . . . . . Launcher 3 | . . . . 2 . 1 Special Weapon . | . . . . . . . Impact Weapon . | . . . . . . . Slashing Weapon 4 | . . . . . . 4 Piercing Weapon 4 | . . . . . 1 3 Special Melee Weapon 1 | . . . . 1 . . Unidentified Prototypes 10 | . . 1 5 4 . . Corrupted Parts 1 | . . . . . . 1 System Corruption 10 | . . . . . . 10 Parts Lost 50 | . 1 2 10 5 . 32 Power 5 | . 1 . 1 1 . 2 Propulsion 28 | . . 1 5 3 . 19 Utility 8 | . . 1 2 1 . 4 Weapon 9 | . . . 2 . . 7 Highest Loss Streak 12 | . 1 1 4 2 . 12 To Critical Strikes 1 | . . . . . . 1 Average Slot Usage (%) 84 | . 85 88 81 96 100 74 Engine 5 | . 13 11 8 2 . 1 Core 1 | . . . . 4 6 3 Leg 6 | . 10 27 11 . . 1 Wheel 3 | . 17 . 4 . . . Flight 20 | . . . 6 43 53 28 Device 8 | . . 16 15 7 6 1 Storage 7 | . 14 11 9 7 6 3 Processor 5 | . . . . 7 6 15 Hackware 2 | . . . . 5 6 2 Protection 2 | . . . 8 . . . Energy Gun 5 | . 11 22 9 . . . Ballistic Gun 9 | . 16 . 7 14 7 6 Peak Build Rating 62 | 6 12 16 43 53 57 62 Average Rating 32 | 3 7 14 26 48 56 40 On Entrance 26 | . 6 12 16 43 49 57 Naked Turns . | . . . . . . . Heaviest Build 35 | 13 17 20 35 31 19 26 Greatest Support 80 | 32 32 39 52 34 36 80 Greatest Overweight (x) 8 | 1 1 . 5 . . 8 Average Overweight (x) . | . . . . . . . Largest Inventory Capacity 8 | 8 8 8 8 8 8 8 Average Capacity 7 | 7 8 8 8 8 8 6 Most Carried 8 | 1 8 8 8 8 7 8 Average Carried 5 | . 5 7 6 5 6 5 Final Capacity 8 | 8 8 8 8 8 8 5 Final Carried 8 | 1 8 8 7 8 7 2 Class Distribution -------------------- 44% | Mutant 26% | Scavenger-Sprinter 17% | Scavenger-Mutant 5% | Sprinter 3% | Commander-Sprinter Dominant Class ---------------- Mutant | -10/Materials Mutant | -9/Materials Mutant | -8/Materials Scavenger-Sprinter | -7/Factory Scavenger-Sprinter | -6/Factory Scavenger-Mutant | -6/Extension Resources | -11 -10 -9 -8 -7 -6 -6 ----------- Run | Yrd Mat Mat Mat Fac Fac Ext Matter Collected 2223 | 247 205 91 422 510 59 689 Remotely . | . . . . . . . Salvage Created 3328 | . 412 251 894 828 59 884 Parts 181 | . 33 24 42 47 1 34 Haulers Intercepted 7 | . 1 1 4 . . 1 Recyclers Shooed 3 | . . . 3 . . . Parts Field Recycled . | . . . . . . . Retrieved Matter . | . . . . . . . Parts Self-Destructed . | . . . . . . . Prevented . | . . . . . . . Kills | -11 -10 -9 -8 -7 -6 -6 ------- Run | Yrd Mat Mat Mat Fac Fac Ext Combat Hostiles Destroyed 64 | . 13 9 16 16 . 10 Melee 3 | . . . . . . 3 Guns 60 | . 13 9 16 16 . 6 AOE 1 | . . . . . . 1 Classes Destroyed 14 | . 5 2 2 2 1 2 Worker 1 | . . . . . . 1 Builder 4 | . 1 . . 1 . 2 Tunneler 2 | . . 1 1 . . . Hauler 7 | . 1 1 4 . . 1 Recycler 4 | . . . 3 . . 1 Mechanic 1 | . . . . . 1 . Operator 2 | . 1 . . 1 . . Watcher 1 | . . . . 1 . . Swarmer 16 | . 6 4 3 3 . . Grunt 32 | . 7 2 10 8 . 5 Sentry 9 | . . 3 2 2 . 2 Hunter 4 | . . . 1 1 . 2 Programmer 2 | . . . . 2 . . Behemoth 1 | . . . . . . 1 Best Kill Streak 7 | . 4 7 4 4 1 4 Combat Bots Only 6 | . 4 6 4 4 . 2 Max Kills in Single Turn 2 | . 1 1 1 1 1 2 Gunslinging 1 | . . . . . . 1 Exploded 1 | . . . . . . 1 Melee 1 | . . . . . . 1 Uniques/NPCs Destroyed . | . . . . . . . Combat | -11 -10 -9 -8 -7 -6 -6 -------- Run | Yrd Mat Mat Mat Fac Fac Ext Hostile Shots Fired 584 | . 73 26 113 103 . 269 Missed 182 | . 24 9 28 41 . 80 Damage Taken 5933 | . 432 268 1385 689 . 3159 Core 1319 | . 120 44 153 147 . 855 Absorbed by Shields . | . . . . . . . Core Remaining (%) 78 | 100 52 89 72 79 . . Volleys Fired 221 | . 49 18 67 51 1 35 Largest 2 | . 2 2 2 2 1 2 Hottest 130 | . 130 130 130 56 28 56 Shots Fired 412 | . 95 35 123 96 1 62 Gun 408 | . 95 35 123 96 1 58 Cannon . | . . . . . . . Launcher 4 | . . . . . . 4 Special . | . . . . . . . Kinetic 273 | . 82 . 36 96 1 58 Thermal 133 | . 13 35 85 . . . Explosive . | . . . . . . . Electromagnetic 6 | . . . 2 . . 4 Robot Hit Streak 20 | . 6 15 18 20 3 12 Robot Miss Streak 8 | . 5 7 8 2 . 3 Penetration Max . | . . . . . . . Secondary Targets 9 | . 3 1 2 1 . 2 Max Gunslinging Chain 1 | . 1 1 1 1 . 1 Shots Hit Robots 363 | . 60 30 101 82 2 88 Core Hits 236 | . 33 39 95 36 . 33 Critical Kills 1 | . . . . 1 . . Critical Parts Destroyed 1 | . . . 1 . . . Critical Strikes 12 | . . . 4 2 1 5 Burn 3 | . . . 3 . . . Destroy 3 | . . . 1 2 . . Sever 5 | . . . . . . 5 Impale 1 | . . . . . 1 . Melee Attacks 51 | . . . . 2 1 48 Impact . | . . . . . . . Slashing 38 | . . . . . . 38 Piercing 11 | . . . . . 1 10 Sneak Attacks 2 | . . . . 2 . . Combat Hostiles . | . . . . . . . Follow-up Attacks 6 | . . . . . . 6 Damage Inflicted 7243 | . 652 570 1712 1648 69 2592 Guns 5269 | . 640 389 1712 1648 19 861 Cannons . | . . . . . . . Explosions 495 | . . 181 . . . 314 Melee 1467 | . . . . . 50 1417 Ramming 12 | . 12 . . . . . Kinetic 3549 | . 491 . 530 1648 19 861 Thermal 1866 | . 149 570 1147 . . . Explosive . | . . . . . . . Electromagnetic 349 | . . . 35 . . 314 Impact . | . . . . . . . Slashing 1177 | . . . . . . 1177 Piercing 290 | . . . . . 50 240 Highest Corruption 10 | . . . . 1 . 10 Average Corruption 4 | . . . . 1 . 10 Corruption Purged . | . . . . . . . Corruption Blocked . | . . . . . . . Effects 13 | . . . . 3 . 10 Message Errors 3 | . . . . 1 . 2 Matter Fused 5 | . . . . 1 . 4 Heat Flow Errors 2 | . . . . 1 . 1 Energy Discharges 1 | . . . . . . 1 Parts Rejected 1 | . . . . . . 1 Parts Fused 1 | . . . . . . 1 Overload Shots . | . . . . . . . Overflow Damage 157 | . . 34 . . 50 73 Projectiles . | . . . . . . . Explosions 34 | . . 34 . . . . Melee 123 | . . . . . 50 73 Knockbacks . | . . . . . . . Impact . | . . . . . . . Kinetic . | . . . . . . . Secondary . | . . . . . . . Self-Inflicted Damage 74 | . 5 69 . . . . Shots 1 | . . 1 . . . . Rammed 1 | . 1 . . . . . Targets Rammed 2 | . 2 . . . . . Kicked 1 | . 1 . . . . . Crushed . | . . . . . . . Highest Temperature 624 | . 310 76 439 624 6 139 Average Temperature 107 | . 128 24 175 108 5 28 Received Heat Transfer 1359 | . 108 39 675 105 . 432 Effects 12 | . 1 . 4 7 . . Shutdowns 2 | . . . 1 1 . . Energy Bleed 1 | . . . 1 . . . Interference 4 | . . . . 4 . . Matter Decay 2 | . 1 . . 1 . . Short Circuit 1 | . . . 1 . . . Damage (minor) 2 | . . . 1 1 . . Siege Activations . | . . . . . . . Robots Corrupted . | . . . . . . . Combat Hostiles . | . . . . . . . Parts Fried 1 | . . . . . . 1 Impact Corruptions . | . . . . . . . Robots Melted . | . . . . . . . Combat Hostiles . | . . . . . . . Parts Melted 1 | . . . 1 . . . Heat Transferred 2651 | . 190 580 1881 . . . Parts Sabotaged . | . . . . . . . Parts Stolen . | . . . . . . . Parts Stripped . | . . . . . . . Power Chain Reactions . | . . . . . . . Alert | -11 -10 -9 -8 -7 -6 -6 ------- Run | Yrd Mat Mat Mat Fac Fac Ext Peak Influence 498 | . 337 358 405 498 174 395 Initial 169 | . . 57 150 156 169 84 Average 254 | . 189 226 272 335 171 206 Maximum Alert Level 2 | . 1 1 2 2 . 1 Low Security (%) 33 | 100 46 48 19 5 100 59 Level 1 61 | . 53 51 80 73 . 40 Level 2 5 | . . . . 20 . . Level 3 . | . . . . . . . Level 4 . | . . . . . . . Level 5 . | . . . . . . . High Security . | . . . . . . . Max Security . | . . . . . . . Squads Dispatched 16 | . 2 . 3 8 . 3 Investigation 7 | . 1 . 1 3 . 2 Extermination 2 | . . . . 2 . . Reinforcement 3 | . 1 . 1 . . 1 Assault . | . . . . . . . Garrison 4 | . . . 1 3 . . Intercept . | . . . . . . . Searches Triggered . | . . . . . . . Construction Impeded 1 | . . . . . . 1 Haulers Reinforced . | . . . . . . . Active Scanning Responses . | . . . . . . . Cargo Convoy Interrupts . | . . . . . . . Stealth | -11 -10 -9 -8 -7 -6 -6 --------- Run | Yrd Mat Mat Mat Fac Fac Ext Distress Signals 13 | . 1 1 4 2 . 5 Communications Jammed . | . . . . . . . Distress Signals . | . . . . . . . Times Spotted 131 | . 19 12 39 27 1 33 Peak Tracking Total 7 | . 5 4 7 4 . 4 Tactical Retreats 7 | . 1 . 1 1 . 4 Traps | -11 -10 -9 -8 -7 -6 -6 ------- Run | Yrd Mat Mat Mat Fac Fac Ext Traps Triggered 3 | . 2 . 1 . . . Indirectly . | . . . . . . . Trap Hack Attempts . | . . . . . . . Triggered . | . . . . . . . Disarmed . | . . . . . . . Reprogrammed . | . . . . . . . Reused . | . . . . . . . Traps Extracted . | . . . . . . . Installed . | . . . . . . . Triggered . | . . . . . . . Machines | -11 -10 -9 -8 -7 -6 -6 ---------- Run | Yrd Mat Mat Mat Fac Fac Ext Machines Disabled 4 | . . 1 1 1 . 1 Max in Single Turn 1 | . . 1 1 1 . 1 Garrison Access 1 | . . . 1 . . . Machines Repaired . | . . . . . . . Machines Dismantled . | . . . . . . . Machines Sabotaged . | . . . . . . . Overloaded Fab Kills . | . . . . . . . Hacking | -11 -10 -9 -8 -7 -6 -6 --------- Run | Yrd Mat Mat Mat Fac Fac Ext Machines Accessed 11 | . . . 1 6 . 4 Terminals 6 | . . . . 2 . 4 Fabricators 3 | . . . . 3 . . Repair Stations . | . . . . . . . Recycling Units . | . . . . . . . Scanalyzers 1 | . . . . 1 . . Garrison Access 1 | . . . 1 . . . Total Hacks 25 | . . . 2 15 . 8 Successful 16 | . . . 1 12 . 3 Failed 9 | . . . 1 3 . 5 Catastrophic 2 | . . . . . . 2 Database Lockouts . | . . . . . . . Manual 4 | . . . . 2 . 2 Terminals 11 | . . . . 3 . 8 Fabricators 9 | . . . . 9 . . Repair Stations . | . . . . . . . Recycling Units . | . . . . . . . Scanalyzers 3 | . . . . 3 . . Garrison Access 2 | . . . 2 . . . Terminal Hacks 5 | . . . . 2 . 3 Record 1 | . . . . 1 . . Open Door 3 | . . . . . . 3 Scanalyzer Index 1 | . . . . 1 . . Fabricator Hacks 7 | . . . . 7 . . Load Schematic 3 | . . . . 3 . . Build 4 | . . . . 4 . . Repair Station Hacks . | . . . . . . . Recycling Unit Hacks . | . . . . . . . Scanalyzer 2 | . . . . 2 . . Insert Component 1 | . . . . 1 . . Analyze 1 | . . . . 1 . . Garrison Access Hacks 1 | . . . 1 . . . Seal Access 1 | . . . 1 . . . Unauthorized Hacks 1 | . . . . 1 . . Terminals 1 | . . . . 1 . . Assimilate 1 | . . . . 1 . . Fabricators . | . . . . . . . Repair Stations . | . . . . . . . Recycling Units . | . . . . . . . Scanalyzers . | . . . . . . . Garrison Access . | . . . . . . . Data Cores Recovered 1 | . . . . 1 . . Used 1 | . . . . 1 . . Hacking Detections 10 | . . . 1 6 . 3 Full Trace Events 5 | . . . . 3 . 2 Feedback Events . | . . . . . . . Feedback Blocked . | . . . . . . . Robot Schematics Acquired . | . . . . . . . Robots Built . | . . . . . . . Authchips . | . . . . . . . Time . | . . . . . . . Total Robot Build Rating . | . . . . . . . Part Schematics Acquired 1 | . . . . 1 . . Parts Built 8 | . . . . 8 . . Authchips . | . . . . . . . Time 358 | . . . . 358 . . Total Part Build Rating 36 | . . . . 36 . . Parts Repaired . | . . . . . . . Time . | . . . . . . . Parts Recycled . | . . . . . . . Recycled Matter . | . . . . . . . Retrieved Matter . | . . . . . . . Retrieved Components . | . . . . . . . Parts Scanalyzed 1 | . . . . 1 . . Part Schematics Acquired 1 | . . . . 1 . . Parts Damaged . | . . . . . . . Bothacking | -11 -10 -9 -8 -7 -6 -6 ------------ Run | Yrd Mat Mat Mat Fac Fac Ext Used RIF Installer . | . . . . . . . Robots Hacked 2 | . . . . 2 . . Non-combat 2 | . . . . 2 . . Combat . | . . . . . . . Robot Hacks Applied 2 | . . . . 2 . . no_distress 1 | . . . . 1 . . find_fabricator 1 | . . . . 1 . . Relay Couplers Released . | . . . . . . . Fabnet Peak Effective % . | . . . . . . . Robots Rewired 13 | . . . . . . 13 Allies Hacked 1 | . . . . 1 . . Hacks Repelled . | . . . . . . . Allies | -11 -10 -9 -8 -7 -6 -6 -------- Run | Yrd Mat Mat Mat Fac Fac Ext Total Allies 17 | . . . . 1 . 16 Largest Group 11 | . . . . 1 . 11 Highest-Rated Group 317 | . . . . 10 . 317 Highest-Rated Ally 39 | . . . . 10 . 39 Total Orders . | . . . . . . . Ally Attacks 133 | . . . . . . 133 Total Damage 2613 | . . . . . . 2613 Kills 16 | . . . . . . 16 Allies Corrupted . | . . . . . . . Allies Melted 1 | . . . . . . 1 Intel | -11 -10 -9 -8 -7 -6 -6 ------- Run | Yrd Mat Mat Mat Fac Fac Ext Robot Analysis Total . | . . . . . . . Derelict Logs Recovered . | . . . . . . . Drone Launches . | . . . . . . . Drone Recoveries . | . . . . . . . Exploration | -11 -10 -9 -8 -7 -6 -6 ------------- Run | Yrd Mat Mat Mat Fac Fac Ext Turns Passed 3593 | 44 412 272 1031 912 45 877 Spaces Moved 2796 | 42 221 152 535 925 114 807 Core 31 | 15 . . . . . 16 Treads 60 | . . . . . . 60 Legs 525 | . 96 152 250 . . 27 Wheels 271 | 27 125 . 119 . . . Hover 3 | . . . . . . 3 Flight 1906 | . . . 166 925 114 701 Fastest Speed 8 | 50 100 120 100 22 24 8 Average Speed 68 | 83 109 120 142 26 30 50 Slowest Speed 450 | 100 190 120 440 29 31 450 Overloaded Moves 36 | . . . . . . 36 Propulsion Burnouts . | . . . . . . . Robots Hopped 32 | . . . . 7 . 25 Cave-ins Triggered . | . . . . . . . Exploration Rate (%) 22 | 4 30 19 32 26 4 42 Regions Visited 6 Branch Regions 1 Pre-discovered Areas . | . . . . . . . Known Exits Taken . | . . . . . . . Unknown Exits Taken 6 | 1 1 1 1 1 1 . Scrap Searched . | . . . . . . . Spaces Dug . | . . . . . . . Terrain Destroyed 33 | . . 33 . . . . Melee . | . . . . . . . Projectile . | . . . . . . . AOE 33 | . . 33 . . . . Terrain Rammed . | . . . . . . . Walls Destroyed . | . . . . . . . Machines Disabled . | . . . . . . . Actions | -11 -10 -9 -8 -7 -6 -6 --------- Run | Yrd Mat Mat Mat Fac Fac Ext Total 3954 | 48 304 207 679 1487 119 1110 Wait 644 | . 13 28 19 468 . 116 Move 2741 | 41 220 151 534 910 113 772 Hop 17 | . . . . 7 . 10 Pick Up 44 | 1 10 4 10 10 1 8 Fast Attach 46 | 6 3 1 14 5 . 17 Attach 20 | . . 2 4 4 2 8 Detach 5 | . . . 3 2 . . Swap 48 | . 4 1 13 17 1 12 Drop 35 | . 3 2 15 10 . 5 Fire 221 | . 49 18 67 51 1 35 Melee 45 | . . . . 2 1 42 Ram 1 | . 1 . . . . . Kick 1 | . 1 . . . . . Crush . | . . . . . . . Escape Stasis . | . . . . . . . Rewire 86 | . . . . 1 . 85 Trap . | . . . . . . . Miscellaneous . | . . . . . . . Route ------- -11/Scrapyard -10/Materials -9/Materials -8/Materials -7/Factory -6/Factory -6/Extension (discovered 1 exit: [*Fac]) History --------- Turn | Location | Event 4 | -11/Scrapyard | Discovered new exit (range 15) 45 | -11/Scrapyard | Entered Materials 345 | -10/Materials | Build established: Mutant 395 | -10/Materials | Discovered new exit (range 13) 457 | -10/Materials | Entered another Materials area 457 | -9/Materials | Evolved 2 slots: Propulsion x1, Utility x1 683 | -9/Materials | Discovered new exit (range 8) 729 | -9/Materials | Entered another Materials area 729 | -8/Materials | Evolved 2 slots: Propulsion x1, Utility x1 891 | -8/Materials | Garrison activated, responded to threat 1059 | -8/Materials | Lost 4 parts (1p1n1u1w) 1298 | -8/Materials | Discovered new exit (range 10) 1760 | -8/Materials | Entered Factory 1760 | -7/Factory | Evolved 2 slots: Propulsion x2 1788 | -7/Factory | Garrison activated, responded to threat 1915 | -7/Factory | Discovered new exit (range 17) 2241 | -7/Factory | Fabricated Gyrokinetic Inverter (x2) 2326 | -7/Factory | Fabricated Xenon Bombardment Thruster (x2) 2437 | -7/Factory | Fabricated Xenon Bombardment Thruster? 2439 | -7/Factory | Fabricated Xenon Bombardment Thruster? 2645 | -7/Factory | Build established: Scavenger-Sprinter 2672 | -7/Factory | Entered another Factory area 2672 | -6/Factory | Evolved 2 slots: Propulsion x2 2713 | -6/Factory | Discovered new exit (range 13) 2717 | -6/Factory | Entered Extension 2731 | -6/Extension | Rescued a captive Derelict 2906 | -6/Extension | Rescued a captive Derelict 2907 | -6/Extension | Rescued a captive Derelict 2915 | -6/Extension | Spotted B-75 Beast 3104 | -6/Extension | Lost 5 allies 3198 | -6/Extension | Spotted B-75 Beast 3202 | -6/Extension | Allies destroyed B-75 Beast 3235 | -6/Extension | Lost 4 allies 3238 | -6/Extension | Destroyed B-75 Beast 3269 | -6/Extension | Lost 12 parts (1p5n2u4w) 3292 | -6/Extension | Disrupted transfer network 3362 | -6/Extension | Discovered new exit (range 3) 3376 | -6/Extension | System corruption reached 10% 3425 | -6/Extension | Lost 6 parts (5n1w) 3425 | -6/Extension | Core integrity fell below 50% 3512 | -6/Extension | Lost 5 parts (1p2n2w) 3566 | -6/Extension | Core integrity fell below 20% 3590 | -6/Extension | Lost 4 parts (3n1u) 3594 | -6/Extension | Destroyed by H-66 Slayer with Heavy Assault Rifle Last Messages --------------- 03554_ H-66 Slayer Phase Shifter severed. 03556_ Penetrated by Slug. 03556_ Flexi-carbon Leg destroyed. 03557_ H-66 Slayer Hvy. Assault Rifle severed. 03559_ Penetrated by Slug. 03559_ Critical hit (Destroy). 03559_ Flexi-carbon Leg destroyed. 03562_ Penetrated by Slug. 03569_ System corrupted: Energy discharge (-38). 03569_ H-66 Slayer destroyed. 03574_ Acquired Flexi-carbon Leg. 03576_ Acquired Lgt. Fission Core. 03580_ Acquired 20 matter. 03582_ W-25 Informer sends out distress signal. 03583_ Penetrated by Slug. 03586_ Slug penetrates Wall. 03586_ Penetrated by Slug. 03588_ System corrupted: Heat flow error (+168). 03591_ Slug penetrates Wall. 03591_ Penetrated by Slug. Map ----- +----------------------------------------------------+ | | | #####????????????????????????????????????????????? | | #???########?????????????????????????????????? | | ##### ##?????????????????????????????????? | | " [ *#########??????????????????????????? | | *%= ! [/% %%%[#??????????????????????????? | | [![%= % #####% #??????????????????????????? | | ##### = #???# %#??????????????????????????? | | #???#######???# #??????????????????????????? | | #####?????????????# #??????????????????????????? | | ????????????????### #??????????????????????????? | | ??????????????###T# #####??????????????????????? | | ??????????????# #??????????????????????? | | ??????????????# # #??????????????????????? | | ??????????????### # #??????????????????????? | | ????????????????###=*[ #??????????????????????? | | ??????????????????#|!%* #??????????????????????? | | ??????????????????# %! #??????????????????????? | | ??????????????????# ! =#??????????????????????? | | ??????????????????# * =!%#??????????????????????? | | ??????????????????# %!]!#??????????????????????? | | ??????????????????# ! !!*#??????????????????????? | | ??????????????????# [!!%#??????????????????????? | | ??????????????????#######*#??????????????????????? | | ????????????????????????#%#??????????????????????? | | ????????????????????????#@#??????????????????????? | | ????????????????????????#h#??????????????????????? | | ????????????????????????#[#??????????????????????? | | ????????????????????????#%#??????????????????????? | | ????????????????????????# #??????????????????????? | | ????????????????????????# #??????????#???????????? | | ????????????????????????# #?###?##?? #???????????? | | ??????????????????????### ### ## ### ###?????????? | | ?????????????????????## % % % "" ""#?????????? | | ?????????????????????## %% " " #?????????? | | ?????????????????????## % #?????????? | | ????????????????????### % #?????????? | | ?????????############## g%] =######????? | | ?????? %% % % !%! ?? | | ?????? ! [%%" ?? | | ?????? ! =" ?? | | ?????? *%% % ?? | | ??????? t === ??? | | ???????################ |!########??? | | ??????????????????????# #?????????? | | ??????????????????????# #?????????? | | ??????????????????????# #?????????? | | ??????????????????????# #?????????? | | ??????????????????????######T# #######?????????? | | ???????????????????????????### < #???????????????? | +----------------------------------------------------+ Best States ------------- Heat Dissipation 59 Energy Generation 18 Energy Capacity 290 Matter Stores 300 Matter Capacity 300 Sight Range 18 Terrain Scan Density 10 Armor Coverage 450 Evasion (%) 65 Targeting Accuracy 10 Melee Accuracy 10 Recoil Reduction 3 Offensive Hacking 10 Item Schematics ----------------- Xenon Bombardment Thruster | -7/Factory | Scanalyzed Robot Schematics ------------------ None Fabricated ------------ Gyrokinetic Inverter | x2 | -7/Factory | Preloaded Xenon Bombardment Thruster | x2 | -7/Factory Xenon Bombardment Thruster | x2 | -7/Factory Xenon Bombardment Thruster | x2 | -7/Factory Alien Tech Used ----------------- None Achievements -------------- Speed Demon Challenges ------------ None Game ------ Seed GrapheneVisualObliterator Manual? 0 Play Time 00:43:46 Cumulative 132.6 hours Start 2024.11.14 @ 15:42:43 End 2024.11.14 @ 19:28:52 Sessions 2 Manual Loads 0 Difficulty Rogue Special Mode None Game No. 224 Rogue 224 Adventurer 0 Explorer 0 Win Type - Total 1 Types 1/0/0/0/0/0/0/0/0 Lore% 52 Gallery% 61 Achievement% 48 Wizard Run 0 Options --------- Layout 0 ASCII 0 Keyboard 1 Movement Numpad Keybinds 0 Fullscreen 2 Font 18/SmallcapsGlow Map View 76x50 Zoom Use 0% Tactical HUD 1 Map Filters NONE Filters NONE Steam 1 RUN: 36a7fafa-9d5b-4171-a1a0-0428b3c9b4ef